bitfinex-derivatives/quotes_SOLF0:USTF0_20241212
["timestamp","ask_amount","ask_price","bid_price","bid_amount"]
[1733992418833,10.19906302,232.73,232.66,2.1485]
[1733992419435,8.05116302,232.71,232.66,2.1485]
[1733992419638,2.1479,232.73,232.66,2.1485]
[1733992419833,8.05116302,232.72,232.66,2.1485]
[1733992424036,8.05116302,232.72,232.66,10.19966302]
[1733992425743,10.19906302,232.72,232.66,10.19966302]
[1733992426840,1.3337,232.75,232.66,10.19966302]
[1733992427035,1.3247,232.81,232.65,8.05116302]
[1733992427234,1.3247,232.81,232.73,8.05116302]
[1733992427441,2.1474,232.78,232.71,8.05116302]
[1733992427745,2.1474,232.78,232.68,85.16510412]
[1733992427746,8.05116302,232.75,232.68,85.16510412]
[1733992427942,8.05116302,232.75,232.69,5.37250086]
[1733992428142,8.05116302,232.75,232.68,85.16510412]
[1733992428338,8.05116302,232.75,232.69,5.37281797]
[1733992428536,8.05116302,232.73,232.66,1.4107]
[1733992428745,8.90443851,232.81,232.67,5.37299623]
[1733992428746,8.05116302,232.71,232.67,5.37299623]
[1733992428942,8.05116302,232.71,232.68,5.37299623]
[1733992429243,8.05116302,232.71,232.64,9.42616302]
[1733992429441,8.05116302,232.71,232.66,2.1484]
[1733992429645,8.05116302,232.71,232.67,5.37324303]
[1733992429840,8.05116302,232.71,232.66,2.1484]
[1733992430236,8.05116302,232.71,232.67,5.37325164]
[1733992430443,8.05116302,232.71,232.68,5.37325164]
[1733992430644,8.05116302,232.71,232.66,2.1484]
[1733992430844,8.05116302,232.71,232.67,5.37323116]
[1733992431043,8.05116302,232.71,232.68,5.37323116]
[1733992431245,8.05116302,232.71,232.66,2.1484]
[1733992431436,8.05116302,232.71,232.67,5.37325164]
[1733992431640,8.05116302,232.71,232.68,5.37325164]
[1733992431840,8.05116302,232.71,232.66,2.1484]
[1733992432041,8.05116302,232.73,232.67,5.37324873]
[1733992432339,10.19936302,232.69,232.62,2.1488]
[1733992432539,10.19936302,232.69,232.63,13.97177816]
[1733992432733,10.19936302,232.69,232.64,5.37376083]
[1733992432938,10.19936302,232.69,232.65,5.37376083]
[1733992433136,10.19936302,232.69,232.62,2.1488]
[1733992433335,10.19936302,232.69,232.63,13.97245213]
[1733992433536,10.19936302,232.69,232.64,5.37402005]
[1733992433738,10.19936302,232.69,232.63,2.1487]
[1733992433739,10.19936302,232.69,232.65,5.37402005]
[1733992433942,10.19936302,232.69,232.63,2.1487]
[1733992434244,10.19936302,232.69,232.64,5.37399621]
[1733992434245,8.05116302,232.69,232.64,5.37399621]
[1733992434444,8.05116302,232.69,232.65,5.37399621]
[1733992434748,8.05116302,232.69,232.61,10.20006302]
[1733992435245,8.05116302,232.69,232.61,2.1489]
[1733992435445,8.05116302,232.69,232.61,10.20006302]
[1733992435644,2.1483,232.68,232.61,10.20006302]
[1733992439747,1.374,232.74,232.57,3.9528]
[1733992439748,10.19916302,232.72,232.63,8.05116302]
[1733992440143,8.05116302,232.72,232.63,8.05116302]
[1733992440345,2.1481,232.71,232.63,10.19986302]
[1733992440544,2.1481,232.71,232.63,8.05116302]
[1733992441738,2.1481,232.71,232.64,2.1486]
[1733992442143,2.1481,232.71,232.63,8.05116302]
[1733992442340,2.1481,232.71,232.65,2.1485]
[1733992442546,2.1481,232.7,232.65,2.1485]
[1733992442948,2.1481,232.7,232.66,5.37352059]
[1733992443150,2.1481,232.7,232.65,2.1485]
[1733992444444,2.1482,232.69,232.65,2.1485]
[1733992445953,2.1483,232.68,232.63,2.1487]
[1733992447351,8.05116302,232.68,232.57,1.4328]
[1733992447556,8.05116302,232.68,232.59,8.05116302]
[1733992447748,8.05116302,232.66,232.6,5.37457187]
[1733992447950,2.1489,232.61,232.57,10.20036302]
[1733992448151,2.52,232.65,232.58,5.37514487]
[1733992448355,2.52,232.65,232.57,10.20036302]
[1733992449452,8.05116302,232.64,232.56,0.19517]
[1733992449657,8.05116302,232.62,232.56,0.19517]
[1733992450369,2.1491,232.59,232.56,0.19517]
[1733992453764,2.1493,232.58,232.56,0.19517]
[1733992453965,8.05116302,232.6,232.56,0.19517]
[1733992455565,2.1492,232.58,232.56,0.19517]
[1733992455974,8.05116302,232.6,232.56,0.19517]
[1733992456176,2.1492,232.59,232.56,0.19517]
[1733992456674,8.05116302,232.6,232.56,0.19517]
[1733992456869,2.1492,232.58,232.56,0.19517]
[1733992458673,2.1493,232.57,232.56,0.19517]
[1733992458977,8.05116302,232.58,232.48,8.05116302]
[1733992459176,10.20076302,232.54,232.49,16.12993168]
[1733992459373,8.05116302,232.54,232.5,13.97993168]
[1733992459575,8.05116302,232.54,232.51,13.97993168]
[1733992459767,2.1497,232.53,232.52,5.3768968]
[1733992459970,2.4,232.6,232.52,5.3768968]
[1733992460168,10.45116302,232.6,232.53,5.3768968]
[1733992460379,10.45116302,232.6,232.54,5.3768968]
[1733992460570,2.1492,232.58,232.53,2.1497]
[1733992460776,2.4,232.6,232.54,13.42774917]
[1733992460974,2.4,232.6,232.56,8.05116302]
[1733992461175,10.20006302,232.62,232.57,2.1493]
[1733992461377,10.20006302,232.62,232.58,5.37581778]
[1733992461578,10.20006302,232.62,232.57,2.1493]
[1733992461876,10.20006302,232.62,232.58,5.37568677]
[1733992462078,8.05116302,232.62,232.57,2.1493]
[1733992462377,8.05116302,232.62,232.58,5.37560305]
[1733992462572,2.4,232.63,232.59,2.1491]
[1733992462773,1.3213,232.64,232.59,2.1491]
[1733992462974,2.4,232.66,232.59,2.1491]
[1733992463170,8.05116302,232.65,232.59,2.1491]
[1733992463379,8.05116302,232.65,232.6,2.149]
[1733992463779,8.05116302,232.65,232.58,8.05116302]
[1733992463979,10.19976302,232.65,232.59,5.37530106]
[1733992464174,10.19976302,232.65,232.58,8.05116302]
[1733992464378,10.19976302,232.65,232.59,5.37528056]
[1733992464574,10.19976302,232.65,232.58,8.05116302]
[1733992464776,8.05116302,232.65,232.6,5.37528056]
[1733992465078,2.1488,232.63,232.57,2.1492]
[1733992465281,2.1488,232.63,232.58,13.97577889]
[1733992465481,2.1488,232.63,232.59,5.37529957]
[1733992465777,2.1488,232.63,232.6,5.37529957]
[1733992465977,2.1488,232.63,232.57,2.1492]
[1733992466179,2.1488,232.63,232.58,13.97573346]
[1733992466380,2.1488,232.63,232.59,5.3752821]
[1733992466578,2.1488,232.63,232.6,5.3752821]
[1733992466780,2.1488,232.63,232.58,10.20036302]
[1733992466979,2.1488,232.63,232.59,5.37528541]
[1733992467179,2.1488,232.63,232.6,5.37528541]
[1733992467486,2.1488,232.63,232.58,10.20036302]
[1733992467876,2.1488,232.63,232.59,5.3752772]
[1733992468076,2.1488,232.63,232.6,5.3752772]
[1733992468277,2.1488,232.63,232.58,10.20036302]
[1733992468475,2.1488,232.63,232.59,5.37528293]
[1733992468682,2.1488,232.63,232.6,5.37528293]
[1733992468878,2.1488,232.63,232.58,10.20036302]
[1733992469178,2.1488,232.63,232.59,5.37526103]
[1733992469378,2.1488,232.63,232.58,8.05116302]
[1733992469379,2.1488,232.63,232.6,5.37526103]
[1733992469580,2.1488,232.63,232.58,8.05116302]
[1733992469781,2.1488,232.63,232.59,5.37528439]
[1733992469983,2.1488,232.63,232.6,5.37528439]
[1733992470180,2.1488,232.63,232.58,8.05116302]
[1733992470381,2.1488,232.63,232.59,5.37528439]
[1733992470682,2.1488,232.63,232.6,5.37528439]
[1733992470877,2.1488,232.63,232.58,10.20036302]
[1733992471182,2.1488,232.63,232.59,5.37530197]
[1733992471384,2.1488,232.63,232.6,5.37530197]
[1733992471585,2.1488,232.63,232.58,10.20036302]
[1733992471781,2.1488,232.63,232.59,5.37530489]
[1733992472081,2.1488,232.63,232.6,5.37530489]
[1733992472282,2.1488,232.63,232.58,10.20036302]
[1733992472482,2.1488,232.63,232.59,5.37530197]
[1733992472681,2.1488,232.63,232.6,5.37530197]
[1733992472881,2.1488,232.63,232.61,5.37530197]
[1733992473086,2.1488,232.63,232.58,10.20036302]
[1733992473384,2.1488,232.63,232.59,5.37530113]
[1733992473584,2.1488,232.63,232.6,5.37530113]
[1733992473883,2.1488,232.63,232.58,10.20036302]
[1733992474084,2.1488,232.63,232.59,5.37528063]
[1733992474285,2.1488,232.63,232.6,5.37528063]
[1733992474486,2.1488,232.63,232.58,10.20036302]
[1733992475078,2.1488,232.63,232.59,5.37527928]
[1733992475279,2.1488,232.63,232.6,5.37527928]
[1733992475477,2.1488,232.63,232.58,10.20036302]
[1733992475678,2.1488,232.63,232.59,5.37528068]
[1733992475879,2.1488,232.63,232.6,5.37528068]
[1733992476078,2.1488,232.63,232.58,10.20036302]
[1733992476286,2.1488,232.63,232.59,5.37529936]
[1733992476486,2.1488,232.63,232.6,5.37529936]
[1733992476689,2.1488,232.63,232.58,2.1492]
[1733992476891,2.1488,232.63,232.59,5.37530082]
[1733992477088,2.1488,232.63,232.6,5.37530082]
[1733992477286,2.1488,232.63,232.58,2.1492]
[1733992477586,2.1488,232.63,232.59,5.37530113]
[1733992477788,2.1488,232.63,232.6,5.37530113]
[1733992477988,2.1488,232.63,232.58,2.1492]
[1733992478291,2.1488,232.63,232.59,5.37529821]
[1733992478492,10.45116302,232.65,232.6,5.37529821]
[1733992478790,10.45116302,232.65,232.58,2.1492]
[1733992478791,2.1489,232.62,232.58,2.1492]
[1733992478985,2.1489,232.62,232.59,5.37538512]
[1733992479191,2.1489,232.62,232.6,5.37538512]
[1733992479492,2.1489,232.62,232.61,5.37538704]
[1733992480186,2.1489,232.62,232.58,2.1492]
[1733992480586,2.1489,232.62,232.59,13.9754099]
[1733992480789,2.1489,232.62,232.6,13.9754099]
[1733992480985,2.1489,232.62,232.61,5.37515765]
[1733992482093,2.1487,232.64,232.61,5.37515765]
[1733992482290,10.45116302,232.65,232.62,5.37515765]
[1733992482490,10.45116302,232.65,232.63,5.37515765]
[1733992482697,10.45116302,232.65,232.56,8.05116302]
[1733992482698,2.1489,232.61,232.56,8.05116302]
[1733992482994,2.1489,232.61,232.57,13.97662061]
[1733992483187,10.45116302,232.65,232.58,13.97662061]
[1733992483392,10.45116302,232.65,232.59,13.97662061]
[1733992483695,10.45116302,232.65,232.57,2.1493]
[1733992483892,10.45116302,232.65,232.6,5.37532517]
[1733992484291,2.1488,232.63,232.58,5.37532517]
[1733992484485,10.45116302,232.65,232.59,8.60052834]
[1733992484986,10.45116302,232.65,232.6,13.97585351]
[1733992485188,10.45116302,232.65,232.61,5.37532517]
[1733992485385,10.45116302,232.65,232.62,5.37532517]
[1733992485690,5.05973851,232.81,232.64,8.05116302]
[1733992485892,3.7624,232.8,232.66,8.05116302]
[1733992486087,8.05116302,232.74,232.67,13.9738254]
[1733992486292,10.45116302,232.74,232.68,5.37502618]
[1733992486488,2.4,232.73,232.69,5.37502618]
[1733992486692,2.4,232.73,232.7,5.37344693]
[1733992486890,2.1479,232.72,232.66,10.19956302]
[1733992487091,2.4,232.73,232.67,8.59750747]
[1733992487291,2.4,232.73,232.68,5.37344217]
[1733992487495,2.4,232.73,232.69,13.97094964]
[1733992487696,2.4,232.73,232.66,8.05116302]
[1733992487697,2.4,232.73,232.7,5.37344217]
[1733992487897,2.4,232.73,232.71,5.37344217]
[1733992488094,2.4,232.73,232.66,8.05116302]
[1733992488397,2.4,232.73,232.67,13.97081951]
[1733992488591,8.05116302,232.72,232.68,13.97081951]
[1733992488798,8.05116302,232.72,232.69,5.37339212]
[1733992488989,8.05116302,232.72,232.7,5.37339212]
[1733992489296,8.05116302,232.72,232.64,8.05116302]
[1733992489500,8.05116302,232.72,232.65,13.97165097]
[1733992489693,8.05116302,232.72,232.66,13.97165097]
[1733992489900,2.1481,232.7,232.67,13.97165097]
[1733992490101,2.1481,232.7,232.64,2.1486]
[1733992490302,2.1481,232.7,232.68,5.37393561]
[1733992490497,2.1481,232.7,232.69,5.37393561]
[1733992493604,2.1481,232.7,232.65,8.05116302]
[1733992493903,2.1481,232.7,232.66,13.97175243]
[1733992494097,2.1481,232.7,232.67,5.37375093]
[1733992494296,2.1481,232.7,232.68,5.37375093]
[1733992494503,2.1481,232.7,232.65,8.05116302]
[1733992494704,2.1481,232.7,232.66,13.97175349]
[1733992494897,2.1481,232.7,232.67,5.37375134]
[1733992495100,1.3624,232.8,232.68,5.37375134]
[1733992495101,2.148,232.71,232.68,5.37375134]
[1733992495301,2.148,232.71,232.67,8.05116302]
[1733992498103,2.148,232.71,232.66,2.1485]
[1733992498402,2.148,232.71,232.67,8.05116302]
[1733992502804,2.148,232.71,232.66,2.1485]
[1733992503009,2.148,232.71,232.67,8.05116302]
[1733992503513,2.148,232.71,232.68,5.37329413]
[1733992503815,2.148,232.71,232.69,5.37329413]
[1733992504012,2.148,232.71,232.67,8.05116302]
[1733992504211,2.148,232.71,232.68,5.37327115]
[1733992504410,2.148,232.71,232.69,5.37327115]
[1733992504604,2.148,232.71,232.67,8.05116302]
[1733992504808,2.148,232.71,232.68,5.37332607]
[1733992505012,2.148,232.71,232.69,5.37332607]
[1733992505214,2.148,232.71,232.67,8.05116302]
[1733992505412,2.148,232.71,232.68,5.373337]
[1733992505611,2.148,232.71,232.69,5.373337]
[1733992505811,2.148,232.71,232.67,8.05116302]
[1733992506110,2.148,232.71,232.68,5.37331069]
[1733992506306,2.148,232.71,232.69,5.37331069]
[1733992506512,2.148,232.71,232.67,8.05116302]
[1733992506813,2.148,232.71,232.68,5.37331361]
[1733992507016,2.148,232.71,232.69,5.37333408]
[1733992507318,2.148,232.71,232.67,8.05116302]
[1733992507516,2.148,232.71,232.68,5.37333408]
[1733992507714,2.148,232.71,232.69,5.37333408]
[1733992507914,2.148,232.71,232.67,8.05116302]
[1733992508115,2.148,232.71,232.68,5.37331361]
[1733992508318,2.148,232.71,232.69,5.37331361]
[1733992508516,2.1483,232.69,232.64,2.1486]
[1733992508711,2.1483,232.69,232.66,8.05116302]
[1733992508916,8.05116302,232.73,232.66,8.05116302]
[1733992509112,2.1481,232.7,232.67,13.97068996]
[1733992509312,2.1481,232.7,232.68,5.37334229]
[1733992509615,2.1481,232.7,232.69,5.37334229]
[1733992510714,2.1481,232.7,232.66,8.05116302]
[1733992512916,2.1481,232.7,232.67,5.37333403]
[1733992513118,2.1481,232.7,232.66,8.05116302]
[1733992513313,2.1481,232.7,232.67,5.37331652]
[1733992513512,2.1481,232.7,232.66,10.19966302]
[1733992513714,2.1481,232.7,232.67,5.37331652]
[1733992513920,2.1481,232.7,232.66,10.19966302]
[1733992514119,2.1481,232.7,232.67,5.37332069]
[1733992514419,2.1481,232.7,232.66,10.19966302]
[1733992514619,2.1481,232.7,232.67,5.37332069]
[1733992514809,2.1481,232.7,232.66,10.19966302]
[1733992515214,2.1481,232.7,232.67,5.37332201]
[1733992515410,2.1481,232.7,232.66,10.19966302]
[1733992515712,2.1481,232.7,232.67,5.3733191]
[1733992516019,2.1481,232.7,232.66,10.19966302]
[1733992516214,2.1481,232.7,232.67,5.37333744]
[1733992516415,2.1481,232.7,232.66,10.19966302]
[1733992516616,2.1481,232.7,232.67,5.37333452]
[1733992516811,2.1481,232.7,232.66,10.19966302]
[1733992517118,2.1481,232.7,232.67,5.37331935]
[1733992517421,2.1481,232.7,232.66,10.19966302]
[1733992517614,2.1481,232.7,232.66,8.05116302]
[1733992517821,2.1481,232.7,232.67,13.97073851]
[1733992518011,2.1481,232.7,232.68,13.97073857]
[1733992518220,2.1481,232.7,232.66,8.05116302]
[1733992518423,2.148,232.72,232.69,5.37332951]
[1733992518617,2.14,232.74,232.68,8.05116302]
[1733992518819,2.14,232.74,232.69,5.37320122]
[1733992519019,2.14,232.74,232.7,5.37320122]
[1733992519220,2.14,232.74,232.68,8.05116302]
[1733992519420,2.14,232.74,232.69,5.37327926]
[1733992519618,2.1481,232.71,232.7,5.37327926]
[1733992521514,2.1481,232.71,232.7,5.37331362]
[1733992521915,2.1481,232.71,232.68,8.05116302]
[1733992522722,2.1481,232.71,232.69,5.37333409]
[1733992522919,2.1481,232.71,232.7,5.37333409]
[1733992525720,2.1481,232.71,232.66,10.19956302]
[1733992525918,2.1481,232.71,232.67,5.37338033]
[1733992526113,2.1481,232.71,232.66,10.19956302]
[1733992526114,2.1481,232.71,232.68,5.37338033]
[1733992526319,2.1481,232.71,232.66,10.19956302]
[1733992526520,2.1481,232.71,232.67,5.37337792]
[1733992526718,2.1481,232.71,232.68,5.37337792]
[1733992526920,2.1481,232.71,232.66,10.19956302]
[1733992527125,2.1481,232.71,232.67,5.37334744]
[1733992527325,2.1481,232.71,232.68,5.37334744]
[1733992527624,2.1481,232.71,232.69,5.37334744]
[1733992527820,2.1481,232.71,232.66,10.19956302]
[1733992528025,2.1481,232.71,232.67,13.97073819]
[1733992528223,10.19116302,232.74,232.67,5.37336084]
[1733992528224,2.1483,232.68,232.67,5.37336084]
[1733992528419,2.1483,232.68,232.67,5.37390724]
[1733992529224,2.1483,232.68,232.64,8.05116302]
[1733992529419,2.1483,232.68,232.65,13.97245642]
[1733992529624,2.1483,232.68,232.66,5.3740217]
[1733992529826,2.1483,232.68,232.67,5.3740217]
[1733992530519,8.05116302,232.68,232.59,8.05116302]
[1733992530826,2.1487,232.64,232.6,13.97378562]
[1733992531022,2.1487,232.64,232.61,13.97378562]
[1733992531223,2.1487,232.64,232.62,5.37453672]
[1733992531923,2.1487,232.63,232.62,5.37453672]
[1733992532221,2.1487,232.63,232.62,13.97404346]
[1733992532527,2.14,232.69,232.62,10.74922843]
[1733992532825,2.14,232.69,232.63,13.97394548]
[1733992533027,2.14,232.69,232.64,13.97394548]
[1733992533226,2.1485,232.66,232.65,13.97394548]
[1733992533427,2.14,232.69,232.65,13.97394548]
[1733992533628,2.14,232.69,232.66,13.97394548]
[1733992533824,2.14,232.69,232.67,13.97394548]
[1733992534018,4.2882,232.69,232.68,5.37469171]
[1733992535630,2.1486,232.66,232.62,5.37453672]
[1733992535824,2.1486,232.66,232.63,13.97385603]
[1733992536025,2.1486,232.66,232.64,13.97385603]
[1733992536226,2.1486,232.66,232.62,5.37453672]
[1733992536227,2.1486,232.66,232.65,13.97385603]
[1733992538827,10.19976302,232.66,232.65,5.37456001]
[1733992539233,2.1489,232.62,232.58,8.05116302]
[1733992539534,2.1489,232.62,232.59,13.97547415]
[1733992539729,2.1489,232.62,232.6,13.97547415]
[1733992540027,2.1489,232.62,232.61,13.97547415]
[1733992540932,2.1489,232.62,232.58,8.05116302]
[1733992541432,2.1489,232.62,232.59,5.37557839]
[1733992541632,2.1489,232.62,232.58,8.05116302]
[1733992542030,2.1489,232.62,232.6,5.37559614]
[1733992542231,2.1489,232.62,232.58,8.05116302]
[1733992542431,2.1489,232.62,232.59,5.3755592]
[1733992542632,2.1489,232.62,232.58,8.05116302]
[1733992542937,2.1489,232.62,232.59,5.37556098]
[1733992543235,2.1489,232.62,232.58,8.05116302]
[1733992543432,2.1489,232.62,232.59,5.3755605]
[1733992543632,2.1489,232.61,232.56,2.1494]
[1733992543834,2.14,232.64,232.57,13.97650429]
[1733992544032,2.14,232.64,232.58,5.37557857]
[1733992544234,2.14,232.64,232.59,5.37557857]
[1733992544439,2.14,232.64,232.56,8.05116302]
[1733992544639,2.14,232.64,232.57,5.37562515]
[1733992544834,2.14,232.64,232.58,5.37562515]
[1733992545138,2.14,232.64,232.56,8.05116302]
[1733992545340,2.14,232.64,232.57,5.37566515]
[1733992545341,2.149,232.61,232.57,5.37566515]
[1733992545539,2.149,232.61,232.58,5.37566515]
[1733992545839,2.149,232.61,232.56,10.20056302]
[1733992546141,2.149,232.61,232.57,5.37562965]
[1733992546341,2.149,232.61,232.58,5.37562965]
[1733992546543,2.149,232.61,232.56,10.20056302]
[1733992546742,2.149,232.61,232.57,5.37563013]
[1733992546942,2.149,232.61,232.58,5.37563013]
[1733992547243,2.149,232.61,232.56,10.20056302]
[1733992547743,2.149,232.61,232.57,5.37563468]
[1733992547938,2.149,232.61,232.58,13.97664913]
[1733992548137,2.149,232.61,232.59,5.37563468]
[1733992548439,2.149,232.61,232.6,5.37563468]
[1733992549034,8.05116302,232.63,232.54,8.05116302]
[1733992549232,2.1493,232.57,232.55,13.97818852]
[1733992549433,8.05116302,232.61,232.56,5.37622635]
[1733992549635,2.04,232.59,232.57,5.37622635]
[1733992549840,2.1494,232.56,232.52,8.05116302]
[1733992550044,2.04,232.59,232.53,13.9788102]
[1733992550240,2.04,232.59,232.54,13.9788102]
[1733992550437,2.04,232.59,232.55,13.9788102]
[1733992550739,2.04,232.59,232.56,5.3763949]
[1733992550940,2.04,232.59,232.52,10.20086302]
[1733992551140,2.04,232.59,232.53,13.97859794]
[1733992551340,2.04,232.59,232.54,13.97859794]
[1733992551641,2.04,232.59,232.55,5.37638393]
[1733992551842,2.04,232.59,232.56,5.37638393]
[1733992552038,2.04,232.59,232.52,10.20086302]
[1733992552341,2.04,232.59,232.53,13.97865866]
[1733992552543,2.04,232.59,232.54,13.97865866]
[1733992552736,2.04,232.59,232.55,5.37640718]
[1733992552935,2.04,232.59,232.56,5.37640718]
[1733992553136,2.04,232.59,232.52,8.05116302]
[1733992553336,2.1495,232.55,232.53,13.97884291]
[1733992553638,2.1495,232.55,232.54,5.37647804]
[1733992553839,2.1495,232.55,232.52,8.05116302]
[1733992554041,2.1495,232.55,232.53,5.37688546]
[1733992554242,2.1495,232.55,232.54,5.37688546]
[1733992554445,2.1495,232.55,232.52,8.05116302]
[1733992554640,2.1495,232.55,232.53,5.37699596]
[1733992554841,2.1495,232.55,232.52,8.05116302]
[1733992555047,2.1495,232.55,232.53,5.37700597]
[1733992555257,2.1495,232.55,232.5,92.13609538]
[1733992555440,2.1495,232.55,232.51,13.9802168]
[1733992555643,2.1495,232.55,232.52,5.37700646]
[1733992555838,10.09116302,232.59,232.53,5.37700646]
[1733992556039,10.09116302,232.59,232.5,8.05116302]
[1733992556342,8.05116302,232.57,232.51,5.37741216]
[1733992556547,8.05116302,232.57,232.5,8.05116302]
[1733992556749,8.05116302,232.57,232.51,5.37749804]
[1733992557046,8.05116302,232.57,232.5,8.05116302]
[1733992557245,8.05116302,232.57,232.51,5.37750394]
[1733992557449,8.05116302,232.57,232.5,8.05116302]
[1733992557649,8.05116302,232.57,232.51,5.37744286]
[1733992557844,8.05116302,232.57,232.5,8.05116302]
[1733992558042,2.1496,232.55,232.51,5.37746288]
[1733992558248,8.05116302,232.57,232.5,8.05116302]
[1733992558754,8.05116302,232.57,232.51,5.37745996]
[1733992559050,8.05116302,232.57,232.5,8.05116302]
[1733992559651,2.1496,232.54,232.5,8.05116302]
[1733992559851,2.1496,232.54,232.49,2.15]
[1733992560051,2.1496,232.54,232.5,13.4286238]
[1733992560252,2.1496,232.54,232.5,8.05116302]
[1733992560645,2.1495,232.55,232.5,8.05116302]
[1733992560848,8.05116302,232.57,232.5,8.05116302]
[1733992561854,2.1495,232.55,232.5,8.05116302]
[1733992562153,5.13445713,232.6,232.5,8.05116302]
[1733992562354,2.04,232.56,232.52,8.05116302]
[1733992562551,2.04,232.56,232.47,1.3683]
[1733992562747,2.04,232.56,232.5,8.05116302]
[1733992562947,2.04,232.56,232.51,5.37737763]
[1733992563151,2.04,232.56,232.5,8.05116302]
[1733992563352,2.04,232.56,232.51,5.37735938]
[1733992563547,2.1495,232.55,232.5,10.20106302]
[1733992563753,2.1495,232.55,232.51,5.37737988]
[1733992563951,2.1495,232.55,232.5,2.1499]
[1733992564450,2.04,232.56,232.45,5.17936231]
[1733992564658,8.05116302,232.55,232.48,8.05116302]
[1733992564853,8.05116302,232.55,232.49,5.37746194]
[1733992565060,8.05116302,232.55,232.48,8.05116302]
[1733992565255,2.1498,232.53,232.49,5.37755645]
[1733992565557,8.05116302,232.55,232.48,8.05116302]
[1733992565950,8.05116302,232.55,232.49,5.37756173]
[1733992566150,2.04,232.56,232.5,8.05116302]
[1733992567063,2.1498,232.53,232.5,8.05116302]
[1733992567257,2.04,232.56,232.5,8.05116302]
[1733992568571,2.1497,232.53,232.5,8.05116302]
[1733992569673,2.1498,232.52,232.5,8.05116302]
[1733992570369,8.05116302,232.55,232.48,8.05116302]
[1733992570572,8.05116302,232.55,232.49,5.37763517]
[1733992570771,8.05116302,232.55,232.48,8.05116302]
[1733992571070,2.1499,232.51,232.49,5.37762114]
[1733992571271,2.1499,232.51,232.45,2.1503]
[1733992571470,2.1499,232.51,232.47,8.05116302]
[1733992571670,2.1499,232.51,232.48,5.37762257]
[1733992571871,2.1499,232.51,232.49,5.37762257]
[1733992572077,2.15,232.5,232.45,2.1503]
[1733992572375,2.15,232.5,232.47,8.05116302]
[1733992572674,2.15,232.5,232.48,5.37803586]
[1733992572875,2.15,232.5,232.47,8.05116302]
[1733992573074,2.15,232.5,232.48,5.37803522]
[1733992573272,2.15,232.5,232.47,8.05116302]
[1733992573473,2.15,232.5,232.48,5.3781407]
[1733992573774,2.15,232.5,232.47,8.05116302]
[1733992573965,2.15,232.5,232.48,5.37813486]
[1733992574273,2.15,232.5,232.47,8.05116302]
[1733992574574,2.15,232.5,232.48,5.37813486]
[1733992574773,8.05116302,232.55,232.43,5.27197442]
[1733992575072,2.1502,232.48,232.46,8.05116302]
[1733992575476,2.04,232.51,232.41,80.76847579]
[1733992575665,8.05116302,232.49,232.41,80.76847579]
[1733992575868,2.1503,232.46,232.42,13.98562196]
[1733992576068,8.05116302,232.49,232.43,5.3789478]
[1733992576269,8.05116302,232.49,232.41,88.81963881]
[1733992576569,8.05116302,232.49,232.42,5.37929438]
[1733992576768,8.05116302,232.49,232.43,5.37929438]
[1733992576969,8.05116302,232.49,232.41,88.81963881]
[1733992577174,8.05116302,232.49,232.42,5.3792492]
[1733992577367,2.1502,232.48,232.43,13.43041222]
[1733992577564,10.09116302,232.51,232.43,8.05116302]
[1733992578168,2.1502,232.47,232.43,8.05116302]
[1733992578775,2.1502,232.47,232.42,2.1507]
[1733992579079,2.1502,232.47,232.43,5.37924949]
[1733992579272,2.1502,232.47,232.41,80.76847579]
[1733992579574,2.1502,232.47,232.42,5.37927729]
[1733992579776,2.1502,232.47,232.43,5.37927729]
[1733992579977,2.1502,232.47,232.41,82.91927579]
[1733992580274,2.1502,232.47,232.42,5.37932187]
[1733992580473,2.1504,232.45,232.39,4.9709]
[1733992580675,2.0,232.46,232.4,13.98640711]
[1733992580877,2.0,232.45,232.41,5.37938735]
[1733992581068,2.1506,232.44,232.39,1.4142]
[1733992581267,2.1506,232.44,232.4,5.37950032]
[1733992581471,2.1506,232.44,232.41,5.37950032]
[1733992581678,2.1506,232.44,232.39,9.46536302]
[1733992581879,2.1506,232.44,232.42,5.37946]
[1733992582173,8.05116302,232.44,232.34,1.3434]
[1733992582376,8.05116302,232.42,232.35,13.98657379]
[1733992582670,2.0,232.41,232.38,8.05116302]
[1733992583474,2.0,232.43,232.38,8.05116302]